[Event "FIDE Women World Blitz 2021"]
[Site "Warsaw"]
[Date "2021.12.30"]
[Round "13.37"]
[White "Maisuradze, Nino"]
[Black "Malicka, Maria"]
[Result "1-0"]
[ECO "E28"]
[WhiteElo "2175"]
[BlackElo "2307"]
[Annotator "NA"]
[PlyCount "117"]
[EventDate "2021.12.29"]
[EventType "swiss"]
[EventCountry "POL"]
[Tiebreak "Cut1 Buchholz"]
[SourceTitle "playchess.com"]
[Source "ChessBase"]
[SourceQuality "1"]
[TimeControl "180+2"]

1. d4 {[%emt 0:00:00]} Nf6 {[%emt 0:00:00]} 2. c4 e6 {[%emt 0:00:03]} 3. Nc3 {
[%emt 0:00:01]} Bb4 {[%emt 0:00:00]} 4. e3 {[%emt 0:00:01]} c5 {[%emt 0:00:03]}
5. a3 {[%emt 0:00:11]} Bxc3+ {[%emt 0:00:03]} 6. bxc3 O-O {[%emt 0:00:04]} 7.
Bd3 d6 {[%emt 0:00:04]} 8. Qf3 {[%emt 0:00:11]} Nc6 {[%emt 0:00:06]} 9. Ne2 {
[%emt 0:00:07]} e5 {[%emt 0:00:03]} 10. d5 {[%emt 0:00:13]} Na5 {[%emt 0:00:04]
} 11. e4 {[%emt 0:00:21]} Nb3 {[%emt 0:00:09]} 12. Rb1 {[%emt 0:00:03]} Nxc1 {
[%emt 0:00:01]} 13. Rxc1 {[%emt 0:00:14]} Bg4 {[%emt 0:00:02]} 14. Qe3 {
[%emt 0:00:12]} Bxe2 {[%emt 0:00:02]} 15. Bxe2 {[%emt 0:00:02]} Qa5 {[%emt 0:
00:01]} 16. O-O {[%emt 0:00:08]} Nd7 {[%emt 0:00:15]} 17. Rb1 {[%emt 0:00:03]}
b6 {[%emt 0:00:14]} 18. Bg4 {[%emt 0:00:24]} Nf6 {[%emt 0:00:02]} 19. Bf5 {
[%emt 0:00:04]} Qa4 {[%emt 0:00:03]} 20. Qd3 {[%emt 0:00:11]} g6 {[%emt 0:00:
02]} 21. Bh3 {[%emt 0:00:02]} Nh5 {[%emt 0:00:03]} 22. g3 {[%emt 0:00:01]} Qe8
{[%emt 0:00:06]} 23. f4 {[%emt 0:00:05]} Qe7 {[%emt 0:00:08]} 24. f5 {[%emt 0:
00:03]} Qg5 {[%emt 0:00:18]} 25. Kh1 {[%emt 0:00:09]} Kg7 {[%emt 0:00:07]} 26.
Rb2 {[%emt 0:00:15]} Nf6 {[%emt 0:00:02]} 27. Bg2 {[%emt 0:00:06]} Ng4 {
[%emt 0:00:07]} 28. Re2 {[%emt 0:00:05]} h5 {[%emt 0:00:07]} 29. h3 {[%emt 0:
00:09]} Nf6 {[%emt 0:00:06]} 30. Ref2 {[%emt 0:00:05]} h4 {[%emt 0:00:10]} 31.
g4 {[%emt 0:00:13]} Nh7 {[%emt 0:00:07]} 32. f6+ {[%emt 0:00:02]} Kg8 {[%emt 0:
00:06]} 33. Rf3 {[%emt 0:00:22]} Rfe8 {[%emt 0:00:03]} 34. R1f2 {[%emt 0:00:00]
} Nf8 {[%emt 0:00:01]} 35. Bf1 {[%emt 0:00:01]} Qc1 {[%emt 0:00:03]} 36. Kg2 {
[%emt 0:00:04]} Qxa3 {[%emt 0:00:01]} 37. Qe3 {[%emt 0:00:02]} Kh7 {[%emt 0:00:
14]} 38. Qg5 {[%emt 0:00:02]} Nd7 {[%emt 0:00:27]} 39. Qxh4+ {[%emt 0:00:02]}
Kg8 {[%emt 0:00:00]} 40. Qh6 {[%emt 0:00:01]} Nxf6 {[%emt 0:00:02]} 41. Rxf6 {
[%emt 0:00:01]} Re7 {[%emt 0:00:03]} 42. R6f3 {[%emt 0:00:03]} Qa4 {[%emt 0:00:
09]} 43. Qg5 {[%emt 0:00:02]} Qd7 {[%emt 0:00:03]} 44. h4 {[%emt 0:00:01]} Kh7
{[%emt 0:00:08]} 45. Be2 {[%emt 0:00:01]} Rg8 {[%emt 0:00:02]} 46. Kh2 {
[%emt 0:00:01]} Rg7 {[%emt 0:00:00]} 47. Qf6 {[%emt 0:00:01]} Kg8 {[%emt 0:00:
01]} 48. Rg2 {[%emt 0:00:01]} Rh7 {[%emt 0:00:02]} 49. Kg3 {[%emt 0:00:02]} Re8
{[%emt 0:00:03]} 50. Kf2 {[%emt 0:00:01]} Qa4 {[%emt 0:00:03]} 51. h5 {[%emt 0:
00:01]} Rg7 {[%emt 0:00:02]} 52. hxg6 {[%emt 0:00:01]} fxg6 {[%emt 0:00:02]}
53. g5 {[%emt 0:00:02]} Qc2 {[%emt 0:00:04]} 54. Rg4 {[%emt 0:00:01]} Qd2 {
[%emt 0:00:06]} 55. Rh4 {[%emt 0:00:02]} a5 {[%emt 0:00:13]} 56. Rh6 {[%emt 0:
00:01]} a4 {[%emt 0:00:05]} 57. Rxg6 {[%emt 0:00:02]} Rxg6 {[%emt 0:00:01]} 58.
Qxg6+ {[%emt 0:00:00]} Kh8 {[%emt 0:00:01]} 59. Rh3# {[%emt 0:00:01]} 1-0

[Event "FIDE Women World Blitz 2021"]
[Site "Warsaw"]
[Date "2021.12.30"]
[Round "13.38"]
[White "Loskutova, Viktoriya"]
[Black "Sliwicka, Alicja"]
[Result "1-0"]
[ECO "B56"]
[WhiteElo "2195"]
[BlackElo "2303"]
[Annotator "NA"]
[PlyCount "195"]
[EventDate "2021.12.29"]
[EventType "swiss"]
[EventCountry "POL"]
[Tiebreak "Cut1 Buchholz"]
[SourceTitle "playchess.com"]
[Source "ChessBase"]
[SourceQuality "1"]
[TimeControl "180+2"]

1. e4 {[%emt 0:00:01]} c5 {[%emt 0:00:01]} 2. Nf3 {[%emt 0:00:01]} d6 {[%emt 0:
00:01]} 3. d4 {[%emt 0:00:00]} cxd4 {[%emt 0:00:01]} 4. Nxd4 {[%emt 0:00:01]}
Nf6 {[%emt 0:00:01]} 5. Nc3 {[%emt 0:00:00]} Bd7 {[%emt 0:00:01]} 6. Be3 {
[%emt 0:00:11]} Ng4 {[%emt 0:00:01]} 7. Bc1 {[%emt 0:00:12]} Nc6 {[%emt 0:00:
02]} 8. Nxc6 {[%emt 0:00:10]} bxc6 {[%emt 0:00:02]} 9. f3 {[%emt 0:00:03]} Nf6
{[%emt 0:00:03]} 10. Be3 {[%emt 0:00:35]} g6 {[%emt 0:00:02]} 11. Qd2 {[%emt 0:
00:07]} Bg7 {[%emt 0:00:01]} 12. Bc4 {[%emt 0:00:17]} a5 {[%emt 0:00:16]} 13.
a4 {[%emt 0:00:11]} Rb8 {[%emt 0:00:03]} 14. Bb3 {[%emt 0:00:01]} h5 {[%emt 0:
00:14]} 15. O-O {[%emt 0:00:10]} h4 {[%emt 0:00:10]} 16. h3 {[%emt 0:00:12]}
Nh5 {[%emt 0:00:06]} 17. Qf2 {[%emt 0:00:10]} Ng3 {[%emt 0:00:10]} 18. Rfd1 {
[%emt 0:00:01]} Rh5 {[%emt 0:00:12]} 19. Bd4 {[%emt 0:00:18]} Bxd4 {[%emt 0:00:
10]} 20. Qxd4 {[%emt 0:00:03]} Qb6 {[%emt 0:00:02]} 21. Qxb6 Rxb6 {[%emt 0:00:
01]} 22. Kf2 {[%emt 0:00:12]} f5 {[%emt 0:00:11]} 23. Re1 {[%emt 0:00:22]} Kd8
{[%emt 0:00:17]} 24. Rab1 {[%emt 0:00:08]} e6 {[%emt 0:00:08]} 25. exf5 {
[%emt 0:00:04]} exf5 {[%emt 0:00:08]} 26. Bf7 {[%emt 0:00:02]} Rh6 {[%emt 0:00:
03]} 27. b3 {[%emt 0:00:05]} g5 {[%emt 0:00:01]} 28. Bc4 {[%emt 0:00:02]} d5 {
[%emt 0:00:03]} 29. Bd3 {[%emt 0:00:01]} Rf6 {[%emt 0:00:02]} 30. Ne2 {[%emt 0:
00:03]} f4 {[%emt 0:00:20]} 31. Nd4 {[%emt 0:00:03]} Nh5 {[%emt 0:00:04]} 32.
Re5 {[%emt 0:00:01]} c5 {[%emt 0:00:08]} 33. Nb5 {[%emt 0:00:01]} c4 {[%emt 0:
00:13]} 34. bxc4 {[%emt 0:00:02]} dxc4 {[%emt 0:00:01]} 35. Bxc4 {[%emt 0:00:
01]} Rfc6 {[%emt 0:00:01]} 36. Bd3 {[%emt 0:00:01]} Ng7 {[%emt 0:00:16]} 37.
Rxg5 {[%emt 0:00:03]} Ne6 {[%emt 0:00:01]} 38. Rg8+ {[%emt 0:00:01]} Ke7 {
[%emt 0:00:01]} 39. Re1 {[%emt 0:00:02]} Kf7 {[%emt 0:00:01]} 40. Rh8 {[%emt 0:
00:03]} Nc5 {[%emt 0:00:07]} 41. Bc4+ {[%emt 0:00:06]} Ne6 {[%emt 0:00:04]} 42.
Bd3 {[%emt 0:00:04]} Nc5 {[%emt 0:00:02]} 43. Rh7+ {[%emt 0:00:02]} Kg8 {
[%emt 0:00:04]} 44. Rxh4 {[%emt 0:00:03]} Nxd3+ {[%emt 0:00:01]} 45. cxd3 {
[%emt 0:00:01]} Rc2+ {[%emt 0:00:02]} 46. Re2 {[%emt 0:00:04]} Rxe2+ 47. Kxe2 {
[%emt 0:00:01]} Rf6 {[%emt 0:00:12]} 48. Rh5 {[%emt 0:00:02]} Kf7 {[%emt 0:00:
03]} 49. d4 {[%emt 0:00:02]} Ke7 {[%emt 0:00:02]} 50. Re5+ {[%emt 0:00:02]} Kd8
{[%emt 0:00:02]} 51. Nc3 {[%emt 0:00:05]} Rc6 {[%emt 0:00:01]} 52. Kd2 {
[%emt 0:00:01]} Rg6 {[%emt 0:00:02]} 53. Re2 {[%emt 0:00:02]} Rd6 {[%emt 0:00:
06]} 54. Kd3 {[%emt 0:00:03]} Bf5+ {[%emt 0:00:02]} 55. Ne4 {[%emt 0:00:03]}
Rb6 {[%emt 0:00:01]} 56. d5 {[%emt 0:00:03]} Rb3+ {[%emt 0:00:01]} 57. Kd4 {
[%emt 0:00:01]} Rb4+ {[%emt 0:00:03]} 58. Ke5 {[%emt 0:00:01]} Bd7 {[%emt 0:00:
01]} 59. Nc5 {[%emt 0:00:02]} Be8 {[%emt 0:00:03]} 60. Kd6 {[%emt 0:00:02]}
Rb6+ {[%emt 0:00:02]} 61. Ke5 {[%emt 0:00:00]} Rb4 {[%emt 0:00:02]} 62. Ne6+ {
[%emt 0:00:03]} Ke7 {[%emt 0:00:07]} 63. Re4 {[%emt 0:00:02]} Rb2 {[%emt 0:00:
02]} 64. Nxf4 {[%emt 0:00:02]} Kd7 {[%emt 0:00:04]} 65. g4 {[%emt 0:00:02]} Rb3
{[%emt 0:00:02]} 66. Ne6 {[%emt 0:00:03]} Rxf3 {[%emt 0:00:03]} 67. Nc5+ {
[%emt 0:00:02]} Kd8 {[%emt 0:00:01]} 68. d6 {[%emt 0:00:01]} Bc6 {[%emt 0:00:
02]} 69. Ne6+ {[%emt 0:00:03]} Kd7 {[%emt 0:00:01]} 70. Nc5+ {[%emt 0:00:02]}
Kd8 {[%emt 0:00:01]} 71. Rd4 {[%emt 0:00:02]} Re3+ {[%emt 0:00:03]} 72. Kf4 {
[%emt 0:00:02]} Rf3+ {[%emt 0:00:01]} 73. Ke5 {[%emt 0:00:02]} Re3+ {[%emt 0:
00:02]} 74. Kf6 {[%emt 0:00:01]} Rf3+ {[%emt 0:00:03]} 75. Kg5 {[%emt 0:00:05]}
Rxh3 {[%emt 0:00:01]} 76. d7 {[%emt 0:00:03]} Re3 {[%emt 0:00:04]} 77. Kf5 {
[%emt 0:00:03]} Rf3+ {[%emt 0:00:06]} 78. Kg6 {[%emt 0:00:01]} Re3 {[%emt 0:00:
01]} 79. g5 {[%emt 0:00:02]} Bxd7 {[%emt 0:00:04]} 80. Rxd7+ {[%emt 0:00:01]}
Ke8 {[%emt 0:00:01]} 81. Rd5 {[%emt 0:00:02]} Kf8 {[%emt 0:00:02]} 82. Rf5+ {
[%emt 0:00:01]} Kg8 {[%emt 0:00:03]} 83. Nd7 {[%emt 0:00:02]} Re6+ {[%emt 0:00:
03]} 84. Nf6+ {[%emt 0:00:01]} Kh8 {[%emt 0:00:01]} 85. Kh5 {[%emt 0:00:03]}
Re1 {[%emt 0:00:02]} 86. Rxa5 {[%emt 0:00:01]} Rh1+ {[%emt 0:00:03]} 87. Kg4 {
[%emt 0:00:01]} Rg1+ {[%emt 0:00:01]} 88. Kf5 {[%emt 0:00:02]} Rf1+ {[%emt 0:
00:01]} 89. Ke6 {[%emt 0:00:00]} Re1+ {[%emt 0:00:01]} 90. Re5 {[%emt 0:00:01]}
Ra1 {[%emt 0:00:02]} 91. a5 {[%emt 0:00:01]} Ra4 {[%emt 0:00:02]} 92. Nh5 {
[%emt 0:00:02]} Kh7 {[%emt 0:00:02]} 93. Kf6 {[%emt 0:00:02]} Ra1 {[%emt 0:00:
03]} 94. g6+ {[%emt 0:00:01]} Kh6 {[%emt 0:00:02]} 95. Nf4 {[%emt 0:00:03]}
Rxa5 {[%emt 0:00:05]} 96. Rh5+ {[%emt 0:00:02]} Rxh5 {[%emt 0:00:02]} 97. Nxh5
{[%emt 0:00:01]} Kxh5 {[%emt 0:00:01]} 98. g7 {[%emt 0:00:00]} 1-0

[Event "FIDE Women World Blitz 2021"]
[Site "Warsaw"]
[Date "2021.12.30"]
[Round "13.39"]
[White "Jarocka, Liwia"]
[Black "Yakimova, Mariya"]
[Result "0-1"]
[ECO "A49"]
[WhiteElo "1851"]
[BlackElo "2219"]
[Annotator "NA"]
[PlyCount "97"]
[EventDate "2021.12.29"]
[EventType "swiss"]
[EventCountry "POL"]
[Tiebreak "Cut1 Buchholz"]
[SourceTitle "playchess.com"]
[Source "ChessBase"]
[SourceQuality "1"]
[TimeControl "180+2"]

1. Nf3 {[%emt 0:00:01]} Nf6 {[%emt 0:00:02]} 2. b3 {[%emt 0:00:01]} g6 {
[%emt 0:00:01]} 3. Bb2 {[%emt 0:00:00]} Bg7 {[%emt 0:00:01]} 4. g3 {[%emt 0:00:
01]} O-O {[%emt 0:00:03]} 5. Bg2 {[%emt 0:00:01]} d6 {[%emt 0:00:01]} 6. d4 {
[%emt 0:00:02]} Nc6 {[%emt 0:00:12]} 7. O-O {[%emt 0:00:02]} e5 {[%emt 0:00:01]
} 8. dxe5 {[%emt 0:00:02]} Ng4 {[%emt 0:00:02]} 9. c4 {[%emt 0:00:02]} dxe5 {
[%emt 0:00:15]} 10. Nc3 {[%emt 0:00:04]} Be6 {[%emt 0:00:09]} 11. Qc2 {[%emt 0:
00:15]} Qe7 {[%emt 0:00:26]} 12. h3 {[%emt 0:00:02]} Nh6 {[%emt 0:00:01]} 13.
Rfd1 {[%emt 0:00:14]} Rad8 {[%emt 0:00:06]} 14. Rac1 {[%emt 0:00:04]} Nb4 {
[%emt 0:00:20]} 15. Qb1 {[%emt 0:00:03]} c6 {[%emt 0:00:01]} 16. Ba3 {[%emt 0:
00:57]} a5 {[%emt 0:00:02]} 17. Bb2 {[%emt 0:00:19]} f5 {[%emt 0:00:07]} 18. h4
{[%emt 0:00:09]} Nf7 {[%emt 0:00:23]} 19. Na4 {[%emt 0:00:06]} Bh6 {[%emt 0:00:
20]} 20. Rxd8 {[%emt 0:00:03]} Rxd8 {[%emt 0:00:02]} 21. Re1 {[%emt 0:00:06]}
e4 {[%emt 0:00:08]} 22. Nd4 {[%emt 0:00:03]} Bg7 {[%emt 0:00:12]} 23. Nxe6 Qxe6
{[%emt 0:00:01]} 24. Bxg7 Kxg7 {[%emt 0:00:01]} 25. a3 {[%emt 0:00:18]} Na6 {
[%emt 0:00:02]} 26. Rd1 {[%emt 0:00:01]} Rxd1+ {[%emt 0:00:12]} 27. Qxd1 {
[%emt 0:00:01]} b5 {[%emt 0:00:09]} 28. Qd4+ {[%emt 0:00:07]} Qe5 {[%emt 0:00:
04]} 29. Qxe5+ {[%emt 0:00:12]} Nxe5 {[%emt 0:00:01]} 30. cxb5 {[%emt 0:00:01]}
cxb5 {[%emt 0:00:01]} 31. Nc3 {[%emt 0:00:03]} b4 {[%emt 0:00:08]} 32. axb4 {
[%emt 0:00:01]} axb4 {[%emt 0:00:03]} 33. Na2 {[%emt 0:00:02]} Nc6 {[%emt 0:00:
05]} 34. f3 {[%emt 0:00:11]} e3 {[%emt 0:00:07]} 35. f4 {[%emt 0:00:01]} Nd4 {
[%emt 0:00:01]} 36. Bd5 {[%emt 0:00:08]} Nxe2+ {[%emt 0:00:05]} 37. Kg2 {
[%emt 0:00:03]} Nc3 {[%emt 0:00:05]} 38. Nxb4 {[%emt 0:00:07]} Nxb4 {[%emt 0:
00:04]} 39. Bc4 {[%emt 0:00:01]} Kf6 {[%emt 0:00:06]} 40. Kf3 {[%emt 0:00:01]}
Nbd5 {[%emt 0:00:05]} 41. b4 {[%emt 0:00:03]} Ke7 {[%emt 0:00:01]} 42. b5 {
[%emt 0:00:01]} Kd6 {[%emt 0:00:01]} 43. Bd3 {[%emt 0:00:01]} Kc5 {[%emt 0:00:
02]} 44. Bf1 {[%emt 0:00:01]} Nxb5 {[%emt 0:00:02]} 45. Bd3 {[%emt 0:00:02]}
Nd4+ {[%emt 0:00:01]} 46. Kg2 {[%emt 0:00:01]} Kb4 {[%emt 0:00:01]} 47. Bf1 {
[%emt 0:00:02]} Kc3 {[%emt 0:00:01]} 48. h5 {[%emt 0:00:00]} e2 {[%emt 0:00:01]
} 49. hxg6 {[%emt 0:00:02]} 0-1

[Event "FIDE Women World Blitz 2021"]
[Site "Warsaw"]
[Date "2021.12.30"]
[Round "14.1"]
[White "Assaubayeva, Bibisara"]
[Black "Babiy, Olga"]
[Result "1-0"]
[ECO "D20"]
[WhiteElo "2400"]
[BlackElo "2179"]
[Annotator "NA"]
[PlyCount "95"]
[EventDate "2021.12.29"]
[EventType "swiss"]
[EventCountry "POL"]
[Tiebreak "Cut1 Buchholz"]
[SourceTitle "playchess.com"]
[Source "ChessBase"]
[SourceQuality "1"]
[TimeControl "180+2"]

1. d4 {[%emt 0:00:01]} d5 {[%emt 0:00:00]} 2. c4 {[%emt 0:00:01]} dxc4 {
[%emt 0:00:01]} 3. e4 {[%emt 0:00:02]} Nf6 {[%emt 0:00:02]} 4. e5 {[%emt 0:00:
01]} Nd5 {[%emt 0:00:01]} 5. Bxc4 {[%emt 0:00:01]} Nb6 {[%emt 0:00:01]} 6. Bb3
{[%emt 0:00:02]} Nc6 {[%emt 0:00:02]} 7. Be3 {[%emt 0:00:01]} Bf5 {[%emt 0:00:
04]} 8. Ne2 {[%emt 0:00:02]} e6 {[%emt 0:00:02]} 9. Nbc3 {[%emt 0:00:02]} Be7 {
[%emt 0:00:03]} 10. O-O {[%emt 0:00:02]} Qd7 {[%emt 0:00:04]} 11. Qc1 {[%emt 0:
00:02]} Nb4 {[%emt 0:00:07]} 12. Rd1 {[%emt 0:00:05]} c6 {[%emt 0:00:04]} 13.
Ng3 {[%emt 0:00:07]} Bg6 {[%emt 0:00:10]} 14. Nge4 {[%emt 0:00:05]} N4d5 {
[%emt 0:00:08]} 15. Nc5 {[%emt 0:00:11]} Qc7 {[%emt 0:00:05]} 16. a4 {[%emt 0:
00:17]} a5 {[%emt 0:00:04]} 17. N3e4 {[%emt 0:00:08]} O-O {[%emt 0:00:12]} 18.
Bg5 {[%emt 0:00:01]} Bxg5 {[%emt 0:00:32]} 19. Qxg5 {[%emt 0:00:04]} Nd7 {
[%emt 0:00:07]} 20. Bxd5 {[%emt 0:00:29]} cxd5 {[%emt 0:00:10]} 21. Nxd7 {
[%emt 0:00:13]} Qxd7 {[%emt 0:00:04]} 22. Nd6 {[%emt 0:00:02]} Ra6 {[%emt 0:00:
08]} 23. h4 {[%emt 0:00:13]} h6 {[%emt 0:00:18]} 24. Qg4 {[%emt 0:00:01]} Rc6 {
[%emt 0:00:06]} 25. h5 {[%emt 0:00:02]} Bc2 {[%emt 0:00:03]} 26. Rd2 {[%emt 0:
00:08]} Bxa4 {[%emt 0:00:08]} 27. Ra3 {[%emt 0:00:12]} Bc2 {[%emt 0:00:27]} 28.
Rxa5 {[%emt 0:00:14]} Bf5 {[%emt 0:00:16]} 29. Qf3 {[%emt 0:00:15]} Rxd6 {
[%emt 0:00:08]} 30. exd6 {[%emt 0:00:02]} Qxd6 {[%emt 0:00:01]} 31. Rd1 {
[%emt 0:00:19]} Rc8 {[%emt 0:00:02]} 32. Qa3 {[%emt 0:00:04]} Qf4 {[%emt 0:00:
08]} 33. Ra8 {[%emt 0:00:03]} Rxa8 {[%emt 0:00:02]} 34. Qxa8+ {[%emt 0:00:01]}
Kh7 {[%emt 0:00:00]} 35. Qxb7 {[%emt 0:00:05]} Qg4 {[%emt 0:00:01]} 36. f3 {
[%emt 0:00:17]} Qxh5 {[%emt 0:00:04]} 37. Qc7 {[%emt 0:00:03]} Bg6 {[%emt 0:00:
03]} 38. b4 {[%emt 0:00:03]} Qg5 {[%emt 0:00:04]} 39. Qc3 {[%emt 0:00:03]} Qd8
{[%emt 0:00:10]} 40. b5 {[%emt 0:00:02]} Qb6 {[%emt 0:00:02]} 41. Qc5 {[%emt 0:
00:02]} Qa5 {[%emt 0:00:03]} 42. b6 {[%emt 0:00:03]} Qa4 {[%emt 0:00:00]} 43.
Rc1 {[%emt 0:00:05]} Qb3 {[%emt 0:00:04]} 44. Kh1 {[%emt 0:00:04]} Qe3 {
[%emt 0:00:05]} 45. b7 {[%emt 0:00:03]} Bh5 {[%emt 0:00:00]} 46. b8=Q {[%emt 0:
00:05]} Bxf3 {[%emt 0:00:02]} 47. Qg3 {[%emt 0:00:04]} Qe4 {[%emt 0:00:05]} 48.
Qxf3 {[%emt 0:00:01]} 1-0

[Event "FIDE Women World Blitz 2021"]
[Site "Warsaw"]
[Date "2021.12.30"]
[Round "14.1"]
[White "Sliwicka, Alicja"]
[Black "Kubicka, Anna"]
[Result "1/2-1/2"]
[ECO "A07"]
[WhiteElo "2303"]
[BlackElo "2273"]
[Annotator "NA"]
[PlyCount "23"]
[EventDate "2021.12.29"]
[EventType "swiss"]
[EventCountry "POL"]
[Tiebreak "Cut1 Buchholz"]
[SourceTitle "playchess.com"]
[Source "ChessBase"]
[SourceQuality "1"]
[TimeControl "180+2"]

1. Nf3 {[%emt 0:00:01]} d5 {[%emt 0:00:03]} 2. g3 {[%emt 0:00:04]} g6 {[%emt 0:
00:01]} 3. Bg2 {[%emt 0:00:02]} Bg7 {[%emt 0:00:01]} 4. O-O {[%emt 0:00:03]} e5
{[%emt 0:00:01]} 5. d3 {[%emt 0:00:06]} Nc6 {[%emt 0:00:03]} 6. e4 {[%emt 0:00:
12]} Nge7 {[%emt 0:00:04]} 7. Nc3 {[%emt 0:00:09]} d4 {[%emt 0:00:09]} 8. Ne2 {
[%emt 0:00:02]} O-O {[%emt 0:00:03]} 9. c3 {[%emt 0:00:03]} dxc3 {[%emt 0:00:
13]} 10. bxc3 {[%emt 0:00:02]} h6 {[%emt 0:00:12]} 11. Qc2 {[%emt 0:00:38]} Be6
{[%emt 0:00:10]} 12. Rd1 {[%emt 0:00:05]} 1/2-1/2

[Event "FIDE Women World Blitz 2021"]
[Site "Warsaw"]
[Date "2021.12.30"]
[Round "14.2"]
[White "Lagno, Kateryna"]
[Black "Gunina, Valentina"]
[Result "1-0"]
[ECO "B12"]
[WhiteElo "2550"]
[BlackElo "2480"]
[Annotator "ChessBase"]
[PlyCount "65"]
[EventDate "2021.12.29"]
[EventType "swiss"]
[EventCountry "POL"]
[Tiebreak "Cut1 Buchholz"]
[SourceTitle "playchess.com"]
[Source "ChessBase"]
[SourceQuality "1"]
[TimeControl "180+2"]

1. e4 {[%emt 0:00:01]} c6 {[%emt 0:00:00]} 2. d4 {[%emt 0:00:02]} d5 {[%emt 0:
00:01]} 3. e5 {[%emt 0:00:01]} c5 {[%emt 0:00:01]} 4. dxc5 {[%emt 0:00:02]} e6
{[%emt 0:00:01]} 5. Bd3 {[%emt 0:00:02]} Bxc5 {[%emt 0:00:02]} 6. Qg4 {[%emt 0:
00:02]} Ne7 {[%emt 0:00:10]} 7. Nf3 {[%emt 0:00:02]} Nbc6 {[%emt 0:00:17]} 8.
c3 {[%emt 0:00:02]} Ng6 {[%emt 0:00:04]} 9. Qg3 {[%emt 0:00:11]} Qc7 {[%emt 0:
00:05]} 10. Bxg6 {[%emt 0:00:34]} hxg6 {[%emt 0:00:03]} 11. Bg5 {[%emt 0:00:11]
} Qb6 {[%emt 0:00:13]} 12. b4 {[%emt 0:00:06]} Be7 {[%emt 0:00:13]} 13. Nbd2 {
[%emt 0:00:08]} Qc7 {[%emt 0:00:27]} 14. Bxe7 {[%emt 0:00:11]} Nxe7 {[%emt 0:
00:02]} 15. Nd4 {[%emt 0:00:03]} Bd7 {[%emt 0:00:03]} 16. O-O {[%emt 0:00:07]}
O-O-O {[%emt 0:00:22]} 17. c4 {[%emt 0:00:06]} dxc4 {[%emt 0:00:09]} 18. Nxc4 {
[%emt 0:00:02]} Kb8 {[%emt 0:00:19]} 19. Nd6 {[%emt 0:00:02]} Rdf8 {[%emt 0:00:
16]} 20. Rac1 {[%emt 0:00:14]} Qb6 {[%emt 0:00:01]} 21. Rfd1 {[%emt 0:00:09]}
Ba4 {[%emt 0:00:02]} 22. Rd3 {[%emt 0:00:15]} Qxb4 {[%emt 0:00:25]} 23. h3 {
[%emt 0:00:04]} Nd5 {[%emt 0:00:02]} 24. Rc4 {[%emt 0:00:18]} Qb1+ {[%emt 0:00:
01]} 25. Kh2 {[%emt 0:00:01]} Bd7 {[%emt 0:00:06]} 26. Rb3 {[%emt 0:00:02]}
Qxa2 {[%emt 0:00:06]} 27. Rxb7+ {[%emt 0:00:03]} Ka8 {[%emt 0:00:00]} 28. Rxd7
{[%emt 0:00:02]} Rb8 {[%emt 0:00:10]} 29. Nc6 {[%emt 0:00:02]} Rb2 {[%emt 0:00:
04]} 30. Rxa7+ {[%emt 0:00:02]} Qxa7 {[%emt 0:00:02]} 31. Nxa7 {[%emt 0:00:01]}
Rhb8 {[%emt 0:00:05]} 32. Ra4 {[%emt 0:00:04]} R8b3 {[%emt 0:00:01]} 33. Nc6# {
[%emt 0:00:02]} 1-0

[Event "FIDE Women World Blitz 2021"]
[Site "Warsaw"]
[Date "2021.12.30"]
[Round "14.2"]
[White "Gil Quilez, Sonia"]
[Black "Goraj, Barbara"]
[Result "0-1"]
[ECO "E94"]
[WhiteElo "2122"]
[BlackElo "1902"]
[Annotator "NA"]
[PlyCount "62"]
[EventDate "2021.12.29"]
[EventType "swiss"]
[EventCountry "POL"]
[Tiebreak "Cut1 Buchholz"]
[SourceTitle "playchess.com"]
[Source "ChessBase"]
[SourceQuality "1"]
[TimeControl "180+2"]

1. d4 {[%emt 0:00:00]} Nf6 {[%emt 0:00:01]} 2. c4 {[%emt 0:00:01]} g6 {[%emt 0:
00:01]} 3. Nc3 {[%emt 0:00:01]} Bg7 {[%emt 0:00:01]} 4. e4 {[%emt 0:00:00]} d6
{[%emt 0:00:01]} 5. Nf3 {[%emt 0:00:01]} O-O {[%emt 0:00:01]} 6. Be2 {[%emt 0:
00:01]} Nbd7 {[%emt 0:00:01]} 7. O-O {[%emt 0:00:04]} e5 {[%emt 0:00:01]} 8. d5
{[%emt 0:00:02]} Nc5 {[%emt 0:00:01]} 9. Qc2 {[%emt 0:00:02]} a5 {[%emt 0:00:
01]} 10. b3 {[%emt 0:00:11]} Nh5 {[%emt 0:00:19]} 11. Bg5 {[%emt 0:00:38]} f6 {
[%emt 0:00:06]} 12. Be3 {[%emt 0:00:08]} b6 {[%emt 0:00:01]} 13. a3 {[%emt 0:
00:04]} f5 {[%emt 0:00:01]} 14. Bg5 {[%emt 0:00:03]} Bf6 {[%emt 0:00:10]} 15.
Bxf6 {[%emt 0:00:09]} Qxf6 {[%emt 0:00:01]} 16. b4 {[%emt 0:00:02]} Nxe4 {
[%emt 0:00:02]} 17. Nxe4 {[%emt 0:00:03]} fxe4 {[%emt 0:00:02]} 18. Qxe4 {
[%emt 0:00:03]} Bf5 {[%emt 0:00:04]} 19. Qh4 {[%emt 0:00:03]} Nf4 {[%emt 0:00:
06]} 20. Bd1 {[%emt 0:00:25]} axb4 {[%emt 0:00:08]} 21. Ng5 {[%emt 0:00:04]}
Qe7 {[%emt 0:00:13]} 22. Bb3 {[%emt 0:00:14]} Rxa3 {[%emt 0:00:10]} 23. Rxa3 {
[%emt 0:00:02]} bxa3 {[%emt 0:00:01]} 24. Ra1 {[%emt 0:00:01]} Ra8 {[%emt 0:00:
02]} 25. g4 {[%emt 0:00:30]} Nh3+ {[%emt 0:00:14]} 26. Qxh3 {[%emt 0:00:14]}
Qxg5 {[%emt 0:00:02]} 27. Bd1 {[%emt 0:00:12]} Bd7 {[%emt 0:00:12]} 28. Qg3 {
[%emt 0:00:03]} Qd2 {[%emt 0:00:06]} 29. Qf3 {[%emt 0:00:14]} Qb2 {[%emt 0:00:
22]} 30. Rxa3 {[%emt 0:00:11]} Qxa3 {[%emt 0:00:04]} 31. Qf6 {[%emt 0:00:03]}
Qc1 {[%emt 0:00:04]} 0-1

[Event "FIDE Women World Blitz 2021"]
[Site "Warsaw"]
[Date "2021.12.30"]
[Round "14.3"]
[White "Koneru, Humpy"]
[Black "Vaishali R"]
[Result "1-0"]
[ECO "D87"]
[WhiteElo "2586"]
[BlackElo "2405"]
[Annotator "ChessBase"]
[PlyCount "57"]
[EventDate "2021.12.29"]
[EventType "swiss"]
[EventCountry "POL"]
[Tiebreak "Cut1 Buchholz"]
[SourceTitle "playchess.com"]
[Source "ChessBase"]
[SourceQuality "1"]
[TimeControl "180+2"]

1. d4 {[%emt 0:00:01]} Nf6 {[%emt 0:00:02]} 2. c4 {[%emt 0:00:01]} g6 {[%emt 0:
00:02]} 3. Nc3 {[%emt 0:00:02]} d5 {[%emt 0:00:01]} 4. cxd5 {[%emt 0:00:05]}
Nxd5 {[%emt 0:00:01]} 5. e4 {[%emt 0:00:04]} Nxc3 {[%emt 0:00:02]} 6. bxc3 {
[%emt 0:00:02]} Bg7 {[%emt 0:00:02]} 7. Bc4 {[%emt 0:00:17]} c5 {[%emt 0:00:01]
} 8. Ne2 {[%emt 0:00:06]} Nc6 {[%emt 0:00:02]} 9. Be3 {[%emt 0:00:17]} O-O {
[%emt 0:00:03]} 10. O-O {[%emt 0:00:05]} b6 {[%emt 0:00:02]} 11. dxc5 {[%emt 0:
00:19]} Qc7 {[%emt 0:00:02]} 12. Nd4 {[%emt 0:00:12]} Ne5 {[%emt 0:00:03]} 13.
Be2 {[%emt 0:00:22]} bxc5 {[%emt 0:00:06]} 14. Nb5 {[%emt 0:00:07]} Qb8 {
[%emt 0:00:10]} 15. Rb1 {[%emt 0:00:07]} a6 {[%emt 0:00:14]} 16. Na3 {[%emt 0:
00:03]} Qc7 {[%emt 0:00:16]} 17. f4 {[%emt 0:00:09]} Rd8 {[%emt 0:00:27]} 18.
Qc2 {[%emt 0:00:20]} Qa5 {[%emt 0:00:45]} 19. Rb3 {[%emt 0:00:34]} Ng4 {
[%emt 0:00:36]} 20. Bxg4 {[%emt 0:00:03]} Bxg4 {[%emt 0:00:02]} 21. f5 {
[%emt 0:00:04]} gxf5 {[%emt 0:00:24]} 22. Nc4 {[%emt 0:00:01]} Qc7 {[%emt 0:00:
10]} 23. exf5 {[%emt 0:00:02]} Qc6 {[%emt 0:00:02]} 24. Bf4 {[%emt 0:00:14]}
Ra7 {[%emt 0:00:07]} 25. Rb6 {[%emt 0:00:03]} Qd5 {[%emt 0:00:03]} 26. Ne3 {
[%emt 0:00:01]} Qd2 {[%emt 0:00:06]} 27. Qxd2 {[%emt 0:00:01]} Rxd2 {[%emt 0:
00:01]} 28. Rb8+ {[%emt 0:00:01]} Bf8 {[%emt 0:00:01]} 29. Bh6 {[%emt 0:00:01]}
1-0